bitfinex/quotes_SOLUSD_20250602
["timestamp","ask_amount","ask_price","bid_price","bid_amount"]
[1748869266570,122.30854415,154.37,154.33,18.46854415]
[1748869266768,103.84,154.37,154.33,18.46854415]
[1748869267195,103.84,154.37,154.34,18.46854415]
[1748869267479,10.52,154.37,154.36,18.46854415]
[1748869267674,18.46854415,154.4,154.36,18.46854415]
[1748869267892,21.50840431,154.41,154.36,18.46854415]
[1748869268093,18.46854415,154.4,154.36,18.46854415]
[1748869268293,18.46854415,154.4,154.35,58.56854415]
[1748869268498,28.98854415,154.41,154.36,18.46854415]
[1748869269100,18.46854415,154.39,154.35,58.56854415]
[1748869269262,18.46854415,154.39,154.35,40.1]
[1748869269592,18.46854415,154.38,154.35,40.1]
[1748869269758,18.46854415,154.39,154.35,58.56854415]
[1748869269968,18.46854415,154.4,154.35,58.56854415]
[1748869270657,18.46854415,154.39,154.35,58.56854415]
[1748869270857,18.46854415,154.38,154.35,40.1]
[1748869271280,18.46854415,154.38,154.34,58.60854415]
[1748869271475,6.47672106,154.4,154.34,40.14]
[1748869271476,18.46854415,154.37,154.34,40.14]
[1748869271862,18.46854415,154.38,154.34,58.60854415]
[1748869272463,18.46854415,154.38,154.34,40.14]
[1748869273067,6.47672106,154.4,154.34,58.60854415]
[1748869273262,18.46854415,154.37,154.34,40.14]
[1748869273561,6.47672106,154.4,154.31,44.46854415]
[1748869273562,18.46854415,154.36,154.31,44.46854415]
[1748869273773,18.46854415,154.36,154.32,40.16]
[1748869275190,10.52,154.36,154.28,18.64964886]
[1748869275360,18.46854415,154.34,154.3,18.46854415]
[1748869275560,18.46854415,154.34,154.29,66.14]
[1748869275887,18.46854415,154.34,154.3,18.46854415]
[1748869276071,18.46854415,154.33,154.29,18.46854415]
[1748869276370,18.46854415,154.33,154.3,26.0]
[1748869278857,18.46854415,154.34,154.3,44.46854415]
[1748869281784,18.46854415,154.35,154.31,18.46854415]
[1748869283421,18.46854415,154.34,154.3,44.46854415]
[1748869283885,18.46854415,154.35,154.31,18.46854415]
[1748869284591,35.70562448,154.36,154.32,25.18562448]
[1748869285778,35.70562448,154.36,154.33,40.06]
[1748869286383,35.70562448,154.36,154.33,65.24562448]
[1748869286384,10.52,154.36,154.33,65.24562448]
[1748869288119,35.70562448,154.36,154.33,40.06]
[1748869289032,10.52,154.36,154.33,40.06]
[1748869289698,10.52,154.36,154.33,71.72518385]
[1748869290119,10.52,154.36,154.33,65.24562448]
[1748869291007,35.70562448,154.36,154.33,40.06]
[1748869294015,1.6646,154.41,154.35,51.18562448]
[1748869294221,25.18562448,154.4,154.35,51.18562448]
[1748869295319,25.18562448,154.4,154.36,25.18562448]
[1748869296097,25.18562448,154.4,154.33,40.06]
[1748869296098,25.18562448,154.37,154.33,40.06]
[1748869296293,25.18562448,154.37,154.33,66.06]
[1748869297015,25.18562448,154.37,154.33,26.0]
[1748869297225,25.18562448,154.37,154.34,40.02]
[1748869297395,25.18562448,154.38,154.34,65.20562448]
[1748869297594,25.18562448,154.4,154.34,40.02]
[1748869297811,1.6646,154.41,154.37,25.18562448]
[1748869298119,26.85022448,154.41,154.37,25.18562448]
[1748869299904,1.6646,154.41,154.37,31.66355781]
[1748869300324,25.18562448,154.42,154.37,31.66355781]
[1748869300533,25.18562448,154.41,154.37,31.66355781]
[1748869300826,25.18562448,154.41,154.37,71.66348196]
[1748869301300,25.18562448,154.41,154.37,40.0]
[1748869301905,25.18562448,154.41,154.37,46.47789813]
[1748869302121,25.18562448,154.41,154.37,71.66352261]
[1748869303828,25.18562448,154.41,154.37,65.18562448]
[1748869304027,25.18562448,154.4,154.37,40.0]
[1748869304333,25.18562448,154.38,154.36,26.0]
[1748869305124,25.18562448,154.37,154.32,18.64964886]
[1748869305297,25.18562448,154.37,154.35,26.0]
[1748869306127,25.18562448,154.36,154.33,26.0]
[1748869306423,25.18562448,154.37,154.33,91.14562448]
[1748869306621,25.18562448,154.37,154.33,51.18562448]
[1748869306820,25.18562448,154.37,154.33,91.14562448]
[1748869307331,25.18562448,154.38,154.33,91.14562448]
[1748869308004,25.18562448,154.37,154.33,91.14562448]
[1748869309029,25.18562448,154.37,154.33,97.62518761]
[1748869309207,25.18562448,154.38,154.34,25.18562448]
[1748869311319,25.18562448,154.38,154.34,31.66471792]
[1748869311705,25.18562448,154.39,154.34,31.66471792]
[1748869311912,25.18562448,154.39,154.34,71.58471792]
[1748869312111,25.18562448,154.39,154.35,25.18562448]
[1748869312933,25.18562448,154.39,154.35,31.66436163]
[1748869313127,25.18562448,154.38,154.34,39.92]
[1748869313328,25.18562448,154.38,154.34,71.58477751]
[1748869313732,25.18562448,154.39,154.34,71.58477751]
[1748869314147,25.18562448,154.39,154.34,160.38477751]
[1748869315019,25.18562448,154.39,154.35,25.18562448]
[1748869315633,35.66562448,154.4,154.35,25.18562448]
[1748869315833,35.66562448,154.4,154.36,25.18562448]
[1748869316539,10.48,154.4,154.37,25.18562448]
[1748869317446,10.48,154.4,154.37,31.66345801]
[1748869318920,25.18562448,154.41,154.37,31.66345801]
[1748869320617,0.8909878,154.43,154.38,65.12562448]
[1748869320948,26.07661228,154.43,154.38,65.12562448]
[1748869321428,25.18562448,154.42,154.38,65.12562448]
[1748869321616,25.18562448,154.41,154.38,39.94]
[1748869322552,25.18562448,154.42,154.38,65.12562448]
[1748869322732,26.07661228,154.43,154.39,31.66272791]
[1748869323225,25.18562448,154.42,154.38,71.60309774]
[1748869323432,25.18562448,154.42,154.38,65.12562448]
[1748869323631,25.18562448,154.41,154.38,39.94]
[1748869324831,25.18562448,154.4,154.36,51.18562448]
[1748869325038,25.18562448,154.4,154.38,26.0]
[1748869325643,0.8909878,154.43,154.35,88.8]
[1748869325644,25.18562448,154.39,154.35,88.8]
[1748869325853,25.18562448,154.39,154.36,26.0]
[1748869327746,25.18562448,154.4,154.36,26.0]
[1748869329152,25.18562448,154.39,154.36,26.0]
[1748869330633,25.18562448,154.4,154.36,26.0]
[1748869332434,12.01021846,154.43,154.36,26.0]
[1748869332634,25.18562448,154.4,154.36,26.0]
[1748869333525,25.18562448,154.4,154.35,71.54432103]
[1748869333926,25.18562448,154.4,154.35,65.06562448]
[1748869334341,25.18562448,154.39,154.34,114.8]
[1748869334654,25.18562448,154.37,154.34,154.68]
[1748869335044,25.18562448,154.37,154.34,26.0]
[1748869335231,25.18562448,154.36,154.34,26.0]
[1748869337831,25.18562448,154.37,154.34,26.0]
[1748869338463,25.18562448,154.36,154.34,26.0]
[1748869339033,25.18562448,154.36,154.32,153.84562448]
[1748869339034,25.18562448,154.35,154.32,114.8]
[1748869339251,25.18562448,154.35,154.32,26.0]
[1748869339453,25.18562448,154.34,154.32,26.0]
[1748869342038,10.44,154.36,154.32,26.0]
[1748869342246,25.18562448,154.35,154.32,26.0]
[1748869343257,25.18562448,154.35,154.31,25.18562448]
[1748869344461,25.18562448,154.35,154.3,91.02562448]
[1748869345033,25.18562448,154.34,154.3,91.02562448]
[1748869345345,25.18562448,154.34,154.3,26.0]
[1748869345645,25.18562448,154.33,154.29,113.98562448]
[1748869345857,25.18562448,154.33,154.28,91.02562448]
[1748869346038,25.18562448,154.31,154.27,132.63527334]
[1748869346230,25.18562448,154.31,154.27,172.47527334]
[1748869346859,25.18562448,154.32,154.27,172.47527334]
[1748869347245,25.18562448,154.32,154.27,88.8]
[1748869347450,25.18562448,154.31,154.27,153.80562448]
[1748869348058,25.18562448,154.31,154.27,113.98562448]
[1748869348261,25.18562448,154.31,154.27,88.8]
[1748869349256,25.18562448,154.31,154.27,113.98562448]
[1748869349754,25.18562448,154.31,154.27,25.18562448]
[1748869350767,6.47937829,154.34,154.29,25.18562448]
[1748869350768,25.18562448,154.34,154.29,25.18562448]
[1748869351341,25.18562448,154.32,154.27,39.8]
[1748869351542,25.18562448,154.32,154.28,25.18562448]
[1748869352461,25.18562448,154.32,154.27,64.98562448]
[1748869352643,10.76561093,154.35,154.27,64.98562448]
[1748869352840,25.18562448,154.31,154.27,153.78562448]
[1748869353536,10.76561093,154.35,154.28,25.18562448]
[1748869353733,25.18562448,154.32,154.28,25.18562448]
[1748869353959,25.18562448,154.3,154.27,88.8]
[1748869354165,25.18562448,154.3,154.27,39.82]
[1748869354847,25.18562448,154.28,154.26,26.0]
[1748869355269,25.18562448,154.27,154.23,25.18562448]
[1748869355457,25.18562448,154.26,154.22,88.8]
[1748869355650,25.18562448,154.25,154.22,88.8]
[1748869355965,25.18562448,154.24,154.21,39.82]
[1748869356153,25.18562448,154.24,154.23,26.0]
[1748869356465,25.18562448,154.25,154.23,26.0]
[1748869357239,25.18562448,154.26,154.23,32.4837862]
[1748869357455,10.36,154.27,154.24,25.18562448]
[1748869358255,35.54562448,154.27,154.23,51.18562448]
[1748869358644,25.18562448,154.26,154.23,26.0]
[1748869359341,25.18562448,154.25,154.23,26.0]
[1748869359773,25.18562448,154.24,154.23,26.0]
[1748869360076,25.18562448,154.25,154.23,26.0]
[1748869360563,25.18562448,154.25,154.2,65.00562448]
[1748869360564,25.18562448,154.24,154.2,25.18562448]
[1748869360865,25.18562448,154.24,154.2,26.0]
[1748869361041,25.18562448,154.22,154.18,128.62]
[1748869361249,6.6049,154.26,154.16,18.64964886]
[1748869361250,25.18562448,154.21,154.16,18.64964886]
[1748869361457,25.18562448,154.2,154.16,153.80562448]
[1748869361652,25.18562448,154.2,154.17,26.0]
[1748869362073,25.18562448,154.2,154.15,65.00562448]
[1748869362366,25.18562448,154.2,154.16,51.18562448]
[1748869362753,25.18562448,154.2,154.16,26.0]
[1748869364476,10.36,154.22,154.16,57.67230318]
[1748869364779,25.18562448,154.21,154.17,25.18562448]
[1748869365271,10.36,154.22,154.16,32.4866787]
[1748869365478,25.18562448,154.22,154.18,25.18562448]
[1748869366067,25.18562448,154.21,154.17,25.18562448]
[1748869366370,25.18562448,154.2,154.16,26.0]
[1748869366558,25.18562448,154.21,154.17,25.18562448]
[1748869368068,25.18562448,154.22,154.17,25.18562448]
[1748869371972,25.18562448,154.21,154.17,25.18562448]
[1748869373879,10.36,154.23,154.18,31.67155002]
[1748869374072,10.36,154.23,154.2,25.18562448]
[1748869374485,35.54562448,154.23,154.19,25.18562448]
[1748869375658,35.54562448,154.23,154.18,46.30592554]
[1748869375876,35.54562448,154.23,154.19,25.18562448]
[1748869377783,25.18562448,154.22,154.18,39.82]
[1748869378184,25.18562448,154.22,154.17,65.00562448]
[1748869380284,16.84388146,154.23,154.17,25.18562448]
[1748869380581,25.18562448,154.22,154.17,65.00562448]
[1748869380967,25.18562448,154.22,154.18,25.18562448]
[1748869381168,35.54562448,154.23,154.18,25.18562448]
[1748869381571,10.36,154.23,154.2,25.18562448]
[1748869382070,10.36,154.23,154.19,25.18562448]
[1748869383499,25.18562448,154.22,154.18,25.18562448]
[1748869384185,25.18562448,154.22,154.17,39.82]
[1748869384186,25.18562448,154.22,154.17,65.00562448]
[1748869385161,25.18562448,154.22,154.17,25.18562448]
[1748869385776,10.36,154.23,154.18,25.18562448]
[1748869386100,10.36,154.23,154.21,25.18562448]
[1748869386771,10.36,154.23,154.22,25.18562448]
[1748869387099,10.36,154.23,154.21,25.18562448]
[1748869387875,10.36,154.23,154.22,25.18562448]
[1748869388076,10.36,154.27,154.22,57.66986776]
[1748869388283,10.36,154.27,154.24,25.18562448]
[1748869391097,35.54562448,154.27,154.23,25.18562448]
[1748869391284,35.54562448,154.27,154.22,51.18562448]
[1748869391481,10.36,154.27,154.22,26.0]
[1748869391703,25.18562448,154.26,154.22,51.18562448]
[1748869393284,10.36,154.27,154.22,51.18562448]
[1748869393590,10.36,154.27,154.23,25.18562448]
[1748869393793,25.18562448,154.26,154.22,51.18562448]
[1748869396089,10.36,154.27,154.24,25.18562448]
[1748869398880,10.36,154.27,154.25,25.18562448]
[1748869399700,10.36,154.27,154.26,25.18562448]
[1748869399914,25.18562448,154.3,154.26,25.18562448]
[1748869404099,25.18562448,154.3,154.25,25.18562448]
[1748869405518,25.18562448,154.28,154.24,39.82]
[1748869406417,25.18562448,154.26,154.22,154.62]
[1748869406711,11.9872,154.31,154.22,51.18562448]
[1748869406913,25.18562448,154.29,154.24,25.18562448]
[1748869407117,25.18562448,154.29,154.25,25.18562448]
[1748869408316,25.18562448,154.29,154.24,25.18562448]
[1748869408522,25.18562448,154.29,154.25,25.18562448]
[1748869408714,11.9872,154.31,154.25,25.18562448]
[1748869408916,25.18562448,154.29,154.25,25.18562448]
[1748869409898,25.18562448,154.3,154.25,25.18562448]
[1748869412045,25.18562448,154.27,154.22,26.0]
[1748869412191,25.18562448,154.25,154.22,26.0]
[1748869413793,6.48088139,154.3,154.22,51.18562448]
[1748869414089,25.18562448,154.26,154.22,51.18562448]
[1748869414688,25.18562448,154.26,154.22,26.0]
[1748869417314,25.18562448,154.27,154.22,51.18562448]
[1748869417827,25.18562448,154.26,154.22,51.18562448]
[1748869418416,10.36,154.28,154.22,26.0]
[1748869418417,16.84188747,154.28,154.22,26.0]
[1748869418642,25.18562448,154.26,154.22,26.0]
[1748869418843,25.18562448,154.26,154.22,51.18562448]
[1748869419212,25.18562448,154.26,154.22,26.0]
[1748869419717,25.18562448,154.25,154.21,25.18562448]
[1748869419914,25.18562448,154.24,154.2,139.98562448]
[1748869420502,23.39178747,154.28,154.2,139.98562448]
[1748869420733,25.18562448,154.25,154.2,51.18562448]
[1748869421335,25.18562448,154.25,154.2,26.0]
[1748869421527,25.18562448,154.25,154.2,51.18562448]
[1748869422147,25.18562448,154.24,154.2,26.0]
[1748869422537,25.18562448,154.22,154.2,26.0]
[1748869424819,25.18562448,154.23,154.2,26.0]
[1748869425617,37.75927789,154.28,154.2,51.18562448]
[1748869425618,21.55497403,154.28,154.2,51.18562448]
[1748869425840,25.18562448,154.26,154.22,25.18562448]
[1748869428636,16.9099,154.28,154.22,25.18562448]
[1748869428832,25.18562448,154.26,154.22,25.18562448]
[1748869431121,25.18562448,154.27,154.22,31.66985356]
[1748869431321,10.36,154.28,154.24,25.18562448]
[1748869431555,35.54562448,154.28,154.24,25.18562448]
[1748869431767,10.36,154.28,154.25,25.18562448]
[1748869432432,10.36,154.28,154.24,25.18562448]
[1748869434049,35.54562448,154.28,154.24,25.18562448]
[1748869435365,25.18562448,154.27,154.23,51.18562448]
[1748869436239,25.18562448,154.27,154.23,26.0]
[1748869436641,35.54562448,154.28,154.24,25.18562448]
[1748869437374,10.36,154.28,154.24,25.18562448]
[1748869438663,10.36,154.28,154.25,25.18562448]
[1748869441555,10.36,154.28,154.24,25.18562448]
[1748869442268,35.54562448,154.28,154.24,25.18562448]
[1748869442863,10.36,154.28,154.26,25.18562448]
[1748869443955,15.47073796,154.31,154.27,25.18562448]
[1748869444156,15.47073796,154.31,154.29,25.18562448]
[1748869444559,15.47073796,154.31,154.3,25.18562448]
[1748869445975,10.76561093,154.35,154.3,31.66650587]
[1748869446147,10.76561093,154.35,154.32,25.18562448]
[1748869447583,10.76561093,154.35,154.33,25.18562448]
[1748869447767,10.76561093,154.35,154.32,51.18562448]
[1748869448868,35.95123541,154.35,154.32,26.0]
[1748869449376,10.76561093,154.35,154.32,26.0]
[1748869449776,10.76561093,154.35,154.32,51.18562448]
[1748869450076,10.38,154.36,154.35,26.0]
[1748869450279,35.56562448,154.39,154.34,51.18562448]
[1748869450453,25.18562448,154.38,154.34,26.0]
[1748869450876,10.38,154.39,154.34,26.0]
[1748869451183,25.18562448,154.38,154.34,26.0]
[1748869451974,25.18562448,154.37,154.34,26.0]
[1748869452172,25.18562448,154.36,154.32,91.00562448]
[1748869452545,25.18562448,154.37,154.32,91.00562448]
[1748869454566,25.18562448,154.37,154.33,25.18562448]
[1748869457683,25.18562448,154.35,154.32,26.0]
[1748869458358,25.18562448,154.36,154.32,26.0]
[1748869458877,25.18562448,154.35,154.31,25.18562448]
[1748869459088,14.35139369,154.37,154.3,26.0]
[1748869459465,14.35139369,154.37,154.29,65.04562448]
[1748869459466,25.18562448,154.33,154.29,25.18562448]
[1748869459868,25.18562448,154.33,154.29,51.18562448]
[1748869460262,25.18562448,154.33,154.29,25.18562448]
[1748869461288,25.18562448,154.33,154.28,26.0]
[1748869461289,25.18562448,154.32,154.28,51.18562448]
[1748869462694,10.38,154.34,154.29,25.18562448]
[1748869462870,25.18562448,154.36,154.32,25.18562448]
[1748869463188,25.18562448,154.35,154.31,25.18562448]
[1748869463601,7.8732,154.37,154.28,26.0]
[1748869463602,25.18562448,154.34,154.3,25.18562448]
[1748869463765,25.18562448,154.35,154.31,25.18562448]
[1748869466385,25.18562448,154.33,154.29,39.86]
[1748869466597,25.18562448,154.33,154.29,65.04562448]
[1748869466768,25.18562448,154.33,154.29,39.86]
[1748869466967,25.18562448,154.33,154.28,65.88]
[1748869467176,25.18562448,154.33,154.28,91.06562448]
[1748869467871,25.18562448,154.33,154.28,51.18562448]
[1748869468082,25.18562448,154.33,154.29,25.18562448]
[1748869468478,25.18562448,154.33,154.28,26.0]
[1748869468695,25.18562448,154.33,154.29,25.18562448]
[1748869469574,6.47924246,154.34,154.29,25.18562448]
[1748869469782,25.18562448,154.33,154.29,25.18562448]
[1748869472306,25.18562448,154.31,154.28,26.0]
[1748869472485,25.18562448,154.29,154.25,25.18562448]
[1748869472684,25.18562448,154.29,154.24,25.18562448]
[1748869472891,25.18562448,154.28,154.24,65.06562448]
[1748869473199,26.74162448,154.32,154.24,91.06562448]
[1748869473200,25.18562448,154.29,154.24,91.06562448]
[1748869473504,25.18562448,154.28,154.23,65.04562448]
[1748869473688,25.18562448,154.27,154.23,65.04562448]
[1748869473886,25.18562448,154.27,154.23,25.18562448]
[1748869474078,25.18562448,154.27,154.23,26.0]
[1748869476818,25.18562448,154.25,154.21,65.04562448]
[1748869477316,25.18562448,154.26,154.21,65.04562448]
[1748869477500,25.18562448,154.26,154.22,25.18562448]
[1748869479001,25.18562448,154.26,154.21,65.04562448]
[1748869479589,25.18562448,154.25,154.2,65.84]
[1748869479895,25.18562448,154.25,154.21,25.18562448]
[1748869480783,25.18562448,154.26,154.21,25.18562448]
[1748869481710,25.18562448,154.26,154.2,65.84]
[1748869481918,25.18562448,154.25,154.21,25.18562448]
[1748869482411,16.8618211,154.28,154.22,25.18562448]
[1748869482810,25.18562448,154.26,154.22,25.18562448]
[1748869486236,25.18562448,154.25,154.21,65.00562448]
[1748869486719,25.18562448,154.25,154.21,25.18562448]
[1748869491307,25.18562448,154.26,154.21,25.18562448]
[1748869492512,25.18562448,154.25,154.21,25.18562448]
[1748869493927,25.18562448,154.26,154.21,25.18562448]
[1748869495429,25.18562448,154.25,154.21,25.18562448]
[1748869495627,25.18562448,154.25,154.2,65.82]
[1748869495928,25.18562448,154.25,154.21,25.18562448]
[1748869500330,6.48225379,154.27,154.21,25.18562448]
[1748869500537,25.18562448,154.24,154.2,51.18562448]
[1748869500740,25.18562448,154.24,154.1,10.0]
[1748869500741,25.18562448,154.21,154.12,14.24865579]
[1748869501031,25.18562448,154.16,154.11,18.64964886]
[1748869501341,10.4,154.18,154.14,26.0]
[1748869501555,10.4,154.18,154.16,25.18562448]
[1748869502424,10.4,154.18,154.15,25.18562448]
[1748869503123,10.4,154.18,154.14,51.18562448]
[1748869503328,25.18562448,154.16,154.12,26.0]
[1748869503546,25.18562448,154.16,154.11,26.0]
[1748869503547,25.18562448,154.16,154.14,26.0]
[1748869504030,25.18562448,154.15,154.09,25.13936266]
[1748869504239,25.18562448,154.15,154.1,25.18562448]
[1748869504411,25.18562448,154.14,154.11,26.0]
[1748869505327,25.18562448,154.14,154.1,25.18562448]
[1748869505736,25.18562448,154.12,154.08,25.18562448]
[1748869505906,25.18562448,154.12,154.08,65.00562448]
[1748869506106,25.18562448,154.12,154.09,26.0]
[1748869506312,25.18562448,154.11,154.06,25.18562448]
[1748869506509,25.18562448,154.09,154.03,25.14173351]
[1748869506733,25.18562448,154.09,154.04,65.00562448]
[1748869506915,25.18562448,154.11,154.06,25.18562448]
[1748869507416,25.18562448,154.1,154.06,25.18562448]
[1748869508010,25.18562448,154.11,154.06,25.18562448]
[1748869508534,10.36,154.13,154.05,26.0]
[1748869508535,25.18562448,154.1,154.05,72.33110843]
[1748869508914,25.18562448,154.1,154.05,97.51673291]
[1748869510041,25.18562448,154.1,154.05,72.33110843]
[1748869510234,25.18562448,154.1,154.05,97.51673291]
[1748869510434,10.36,154.13,154.05,72.33110843]
[1748869510638,25.18562448,154.1,154.05,97.51673291]
[1748869510845,25.18562448,154.1,154.05,72.33110843]
[1748869511461,25.18562448,154.09,154.05,72.33110843]
[1748869511749,25.18562448,154.09,154.05,97.51673291]
[1748869511918,25.18562448,154.09,154.05,91.02562448]
[1748869512116,25.18562448,154.09,154.05,72.33136732]
[1748869512320,25.18562448,154.09,154.05,91.02562448]
[1748869512739,25.18562448,154.09,154.05,51.18562448]
[1748869513258,25.18562448,154.08,154.05,26.0]
[1748869513429,25.18562448,154.08,154.0,96.8451]
[1748869513628,25.18562448,154.08,154.01,25.18562448]
[1748869513629,25.18562448,154.05,154.01,25.18562448]
[1748869513861,25.18562448,154.05,154.01,91.02562448]
[1748869514040,25.18562448,154.05,154.01,65.84]
[1748869514240,25.18562448,154.05,154.01,91.02562448]
[1748869514446,25.18562448,154.05,154.01,26.0]
[1748869514762,25.18562448,154.05,154.01,25.18562448]
[1748869514955,25.18562448,154.05,153.99,46.35379582]
[1748869515255,25.18562448,154.05,154.02,26.0]
[1748869516365,25.18562448,154.06,154.02,26.0]
[1748869516543,25.18562448,154.05,154.01,25.18562448]
[1748869516859,25.18562448,154.05,154.0,25.18562448]
[1748869517047,25.18562448,154.04,154.0,25.18562448]
[1748869517449,25.18562448,154.03,153.98,65.86]
[1748869517643,25.18562448,154.03,153.99,25.18562448]
[1748869517970,10.36,154.03,153.99,25.18562448]
[1748869518142,35.54562448,154.03,153.98,26.0]
[1748869518539,10.36,154.03,153.98,26.0]
[1748869518847,10.36,154.03,154.01,25.18562448]
[1748869519030,10.36,154.03,154.0,25.18562448]
[1748869519238,10.36,154.03,153.98,32.49431994]
[1748869521861,25.18562448,154.14,154.09,25.18562448]
[1748869522258,25.18562448,154.14,154.1,25.18562448]
[1748869523466,25.18562448,154.14,154.08,6.48985088]
[1748869523700,25.18562448,154.14,154.1,25.18562448]
[1748869524136,10.38,154.15,154.1,25.18562448]
[1748869524332,25.18562448,154.14,154.1,25.18562448]
[1748869524565,25.18562448,154.12,154.08,25.18562448]
[1748869525660,25.18562448,154.1,154.06,51.18562448]
[1748869525963,25.18562448,154.1,154.05,25.18562448]
[1748869526150,25.18562448,154.09,154.05,25.18562448]
[1748869527047,35.56562448,154.1,154.06,25.18562448]
[1748869527653,35.56562448,154.1,154.04,26.0]
[1748869527959,35.56562448,154.1,154.06,25.18562448]
[1748869528572,25.18562448,154.09,154.04,26.0]
[1748869528872,25.18562448,154.09,154.05,25.18562448]
[1748869529376,35.56562448,154.1,154.06,25.18562448]
[1748869533078,25.18562448,154.09,154.05,25.18562448]
[1748869533884,25.18562448,154.07,154.03,26.0]
[1748869534170,25.18562448,154.07,154.03,51.18562448]
[1748869534376,25.18562448,154.08,154.04,25.18562448]
[1748869536474,25.18562448,154.07,154.03,51.18562448]
[1748869536677,25.18562448,154.07,154.03,26.0]
[1748869538781,25.18562448,154.06,154.02,25.18562448]
[1748869538962,25.18562448,154.04,154.02,26.0]
[1748869539163,25.18562448,154.04,154.0,26.0]
[1748869539666,25.18562448,154.04,154.0,51.18562448]
[1748869541678,31.67751277,154.04,154.0,26.0]
[1748869541986,25.18562448,154.04,154.0,51.18562448]
[1748869542886,31.67754762,154.04,154.0,51.18562448]
[1748869543089,25.18562448,154.03,154.0,26.0]
[1748869544080,25.18562448,154.03,153.99,25.18562448]
[1748869544280,25.18562448,154.03,153.99,26.0]
[1748869544281,25.18562448,154.02,153.99,26.0]
[1748869544587,25.18562448,154.03,153.99,51.18562448]
[1748869545576,31.67787185,154.03,153.99,51.18562448]
[1748869547475,31.67787185,154.03,153.99,25.18562448]
[1748869548187,25.18562448,154.02,153.97,51.18562448]
[1748869548399,25.18562448,154.02,153.97,91.06562448]
[1748869548579,6.49224737,154.03,153.98,25.18562448]
[1748869548786,31.67787185,154.03,153.98,25.18562448]
[1748869550196,31.67787185,154.03,153.95,8.00642752]
[1748869550197,25.18562448,154.0,153.9,19.54570232]
[1748869550371,25.18562448,153.97,153.93,25.18562448]
[1748869550685,25.18562448,153.98,153.93,25.18562448]
[1748869550888,10.38,153.99,153.93,25.18562448]
[1748869550889,35.56562448,153.99,153.94,25.18562448]
[1748869552373,25.18562448,153.97,153.93,26.0]
[1748869552578,25.18562448,153.97,153.94,26.0]
[1748869553187,25.18562448,153.96,153.94,26.0]
[1748869553368,25.18562448,153.97,153.94,26.0]
[1748869556273,25.18562448,153.96,153.94,26.0]
[1748869559777,25.18562448,153.95,153.88,1.5067]
[1748869559980,25.18562448,153.94,153.9,25.18562448]
[1748869560293,25.18562448,153.94,153.9,51.18562448]
[1748869560604,25.18562448,153.92,153.9,26.0]
[1748869560974,25.18562448,153.91,153.86,25.18562448]
[1748869561174,25.18562448,153.9,153.87,26.0]
[1748869561575,25.18562448,153.89,153.85,25.18562448]
[1748869561893,63.19444644,153.95,153.88,25.18562448]
[1748869562083,25.18562448,153.92,153.88,25.18562448]
[1748869562282,25.18562448,153.91,153.86,51.18562448]
[1748869562492,25.18562448,153.9,153.86,51.18562448]
[1748869562800,25.18562448,153.89,153.85,25.18562448]
[1748869562994,25.18562448,153.9,153.85,51.18562448]
[1748869563510,25.18562448,153.9,153.85,26.0]
[1748869563676,25.18562448,153.9,153.85,51.18562448]
[1748869564076,25.18562448,153.9,153.85,57.68544676]
[1748869565196,56.6987,153.95,153.88,25.18562448]
[1748869565393,25.18562448,153.92,153.88,25.18562448]
[1748869566984,25.18562448,153.92,153.88,31.68401907]
[1748869567201,16.8187,153.95,153.89,25.18562448]
[1748869567378,25.18562448,153.93,153.89,25.18562448]
[1748869567701,25.18562448,153.94,153.9,25.18562448]
[1748869568202,25.18562448,153.93,153.89,25.18562448]
[1748869568737,25.18562448,153.92,153.88,97.58401907]
[1748869570402,25.18562448,153.92,153.88,72.39839459]
[1748869571111,25.18562448,153.92,153.88,65.9]
[1748869571282,25.18562448,153.92,153.88,91.08562448]
[1748869571908,25.18562448,153.92,153.88,65.9]
[1748869572093,25.18562448,153.92,153.88,91.08562448]
[1748869572607,25.18562448,153.92,153.88,51.18562448]
[1748869573805,25.18562448,153.93,153.89,25.18562448]
[1748869575696,35.56562448,153.95,153.91,25.18562448]
[1748869577105,10.38,153.95,153.92,25.18562448]
[1748869577690,16.6891,153.99,153.94,25.18562448]
[1748869578002,16.6891,153.99,153.91,26.0]
[1748869578003,35.56562448,153.99,153.95,25.18562448]
[1748869583290,35.56562448,153.99,153.94,25.18562448]
[1748869584515,25.18562448,153.98,153.94,25.18562448]
[1748869584812,25.18562448,153.97,153.93,25.18562448]
[1748869585118,25.18562448,153.96,153.92,25.18562448]
[1748869585715,25.18562448,153.95,153.91,51.18562448]